fUST/lending_fUST_20260111
["ID","MTS","AMOUNT","RATE_DAILY","PERIOD"]
[401295960,1768115457565,-163.11732391,0.00036712,30]
[401295961,1768115457575,-500.0,0.00036712,10]
[401295962,1768115457584,-500.0,0.00036712,10]
[401295963,1768115457593,-500.0,0.00036712,10]
[401295964,1768115457603,-500.0,0.00036712,10]
[401295965,1768115457613,-500.0,0.00036712,10]
[401295966,1768115457622,-500.0,0.00036712,10]
[401295967,1768115457632,-500.0,0.00036712,10]
[401295968,1768115457641,-500.0,0.00036712,10]
[401295969,1768115457650,-500.0,0.00036712,10]
[401295970,1768115457666,-500.0,0.00036712,10]
[401295971,1768115457675,-500.0,0.00036712,10]
[401295972,1768115457683,-500.0,0.00036712,10]
[401295973,1768115457692,-587.39279836,0.00036712,30]
[401295974,1768115457701,-500.0,0.00036712,10]
[401295975,1768115457710,-500.0,0.00036712,10]
[401295976,1768115457720,-500.0,0.00036712,10]
[401295977,1768115457729,-233.97388116,0.00036712,10]
[401295978,1768115457741,-500.0,0.00036712,30]
[401295979,1768115457755,-160.4969878,0.00036712,30]
[401295980,1768115457764,-2062.424425,0.00036712,5]
[401295981,1768115457774,-518.52,0.00036712,30]
[401295982,1768115457784,-400.0,0.0003672,10]
[401295983,1768115457793,-728.0,0.00036745,11]
[401295984,1768115457803,-682.0,0.00036746,11]
[401295985,1768115457812,-728.0,0.00036755,11]
[401295986,1768115457822,-728.0,0.00036757,11]
[401295987,1768115457831,-728.0,0.00036774,11]
[401295988,1768115457841,-13703.66306834,0.000368,60]
[401295989,1768115457850,-7500.0,0.000368,120]
[401295990,1768115457859,-3084.3640942,0.00036896,120]
[401295991,1768115457868,-151.00151001,0.00036901,120]
[401295992,1768115457878,-1419.17629578,0.00036972,120]
[401295993,1768115457887,-1000.0,0.00036986,120]
[401295994,1768115457896,-1000.0,0.00036999,30]
[401295995,1768115457908,-1112.0,0.00036999,6]
[401295996,1768115457917,-2044.18983378,0.00037,2]
[401295997,1768115457926,-230.62785489,0.00037,120]
[401295998,1768115457935,-1794448.02027672,0.00037041,20]
[401295999,1768115458220,-702.24999988,0.000129,2]
[401296000,1768115458238,-1741.98469899,0.000129,2]
[401296001,1768115458249,-800.68306771,0.000129,2]
[401296002,1768115465040,10000.01,8.872e-05,2]
[401296003,1768115465070,10000.01,8.872e-05,2]
[401296004,1768115465100,10000.01,8.872e-05,2]
[401296005,1768115465131,10000.01,8.872e-05,2]
[401296006,1768115465164,10000.01,8.872e-05,2]
[401296007,1768115465194,10000.01,8.872e-05,2]
[401296008,1768115465224,10000.01,8.872e-05,2]
[401296009,1768115465253,10000.01,8.872e-05,2]
[401296010,1768115465282,10000.01,8.872e-05,2]
[401296011,1768115465311,10000.01,8.872e-05,2]
[401296012,1768115492596,-309.82486322,8.872e-05,2]
[401296013,1768115505986,233.613,8.694e-05,2]
[401296014,1768115506081,176.72,8.694e-05,2]
[401296015,1768115509986,413.18,6.776e-05,2]
[401296016,1768115510396,826.37,7.393e-05,2]
[401296017,1768115510800,1239.55,8.009e-05,2]
[401296018,1768115511202,1652.74,8.625e-05,2]
[401296019,1768115522454,300.0,8.871e-05,2]
[401296023,1768115582672,300.0,8.871e-05,2]
[401296024,1768115589089,360.6,6.437e-05,2]
[401296025,1768115589531,721.2,7.023e-05,2]
[401296026,1768115589980,1081.79,7.608e-05,2]
[401296027,1768115590387,1442.39,8.193e-05,2]
[401296028,1768115590806,1251.857,8.778e-05,2]
[401296029,1768115590833,551.133,8.778e-05,2]
[401296030,1768115642667,300.0,8.871e-05,2]
[401296031,1768115662546,161.0,8.3e-07,2]
[401296032,1768115663624,161.0,8.3e-07,2]
[401296033,1768115664698,161.0,8.3e-07,2]
[401296034,1768115665732,161.0,8.3e-07,2]
[401296035,1768115666773,161.0,8.3e-07,2]
[401296036,1768115667807,161.0,8.3e-07,2]
[401296037,1768115668137,296.77,6.812e-05,2]
[401296038,1768115668569,593.54,7.432e-05,2]
[401296039,1768115668874,161.0,8.3e-07,2]
[401296040,1768115669113,890.31,8.051e-05,2]
[401296041,1768115669391,1187.08,8.67e-05,2]
[401296042,1768115669959,161.0,8.3e-07,2]
[401296043,1768115701721,300.0,8.871e-05,2]
[401296044,1768115702233,300.0,8.871e-05,2]
[401296045,1768115703317,534.0,8.871e-05,2]
[401296046,1768115705205,155.0,6e-05,2]
[401296048,1768115762380,300.0,8.871e-05,2]
[401296050,1768115822392,300.0,8.871e-05,2]
[401296051,1768115833555,8111.01,8.788e-05,2]
[401296052,1768115833582,8428.727552,8.788e-05,2]
[401296053,1768115865550,500.0,8.871e-05,2]
[401296054,1768115865593,173.36618845,8.871e-05,2]
[401296055,1768115865803,500.0,8.871e-05,2]
[401296056,1768115865997,397.91625955,8.871e-05,2]
[401296057,1768115866025,102.08374045,8.871e-05,2]
[401296058,1768115866069,500.0,8.871e-05,2]
[401296059,1768115866121,500.0,8.871e-05,2]
[401296060,1768115866178,500.0,8.871e-05,2]
[401296061,1768115866521,500.0,8.871e-05,2]
[401296062,1768115866642,500.0,8.871e-05,2]
[401296063,1768115869344,448.42446677,8.871e-05,2]
[401296064,1768115871905,500.0,8.871e-05,2]
[401296065,1768115871946,500.0,8.871e-05,2]
[401296066,1768115871986,500.0,8.871e-05,2]
[401296067,1768115872038,500.0,8.871e-05,2]
[401296068,1768115872095,500.0,8.871e-05,2]
[401296069,1768115872138,500.0,8.871e-05,2]
[401296070,1768115872193,456.56366493,8.871e-05,2]
[401296071,1768115872237,500.0,8.871e-05,2]
[401296072,1768115872280,500.0,8.871e-05,2]
[401296073,1768115872320,500.0,8.871e-05,2]
[401296074,1768115872373,500.0,8.871e-05,2]
[401296075,1768115872415,500.0,8.871e-05,2]
[401296076,1768115872457,500.0,8.871e-05,2]
[401296077,1768115872510,492.93812785,8.871e-05,2]
[401296078,1768115872539,7.06187215,8.871e-05,2]
[401296079,1768115872696,426.27033442,8.871e-05,2]
[401296080,1768115872735,500.0,8.871e-05,2]
[401296081,1768115872789,500.0,8.871e-05,2]
[401296082,1768115872830,500.0,8.871e-05,2]
[401296083,1768115872889,500.0,8.871e-05,2]
[401296084,1768115872940,304.43593122,8.871e-05,2]
[401296085,1768115872979,500.0,8.871e-05,2]
[401296086,1768115873018,500.0,8.871e-05,2]
[401296087,1768115873112,500.0,8.871e-05,2]
[401296088,1768115873169,500.0,8.871e-05,2]
[401296089,1768115873401,500.0,8.871e-05,2]
[401296090,1768115873470,500.0,8.871e-05,2]
[401296091,1768115873513,500.0,8.871e-05,2]
[401296092,1768115873573,500.0,8.871e-05,2]
[401296093,1768115873627,500.0,8.871e-05,2]
[401296094,1768115873667,500.0,8.871e-05,2]
[401296095,1768115873718,500.0,8.871e-05,2]
[401296096,1768115873759,500.0,8.871e-05,2]
[401296097,1768115873812,500.0,8.871e-05,2]
[401296098,1768115873853,500.0,8.871e-05,2]
[401296099,1768115873903,262.24186221,8.871e-05,2]
[401296100,1768115873930,237.75813779,8.871e-05,2]
[401296101,1768115873969,500.0,8.871e-05,2]
[401296102,1768115874027,500.0,8.871e-05,2]
[401296103,1768115874079,500.0,8.871e-05,2]
[401296104,1768115874117,500.0,8.871e-05,2]
[401296105,1768115874170,500.0,8.871e-05,2]
[401296106,1768115874221,500.0,8.871e-05,2]
[401296107,1768115874260,500.0,8.871e-05,2]
[401296108,1768115874310,500.0,8.871e-05,2]
[401296109,1768115874361,500.0,8.871e-05,2]
[401296110,1768115874398,500.0,8.871e-05,2]
[401296111,1768115874464,500.0,8.871e-05,2]
[401296112,1768115874516,500.0,8.871e-05,2]
[401296113,1768115874557,500.0,8.871e-05,2]
[401296114,1768115874737,500.0,8.871e-05,2]
[401296115,1768115874795,500.0,8.871e-05,2]
[401296116,1768115874835,500.0,8.871e-05,2]
[401296117,1768115874889,605.67444617,8.871e-05,2]
[401296118,1768115874940,500.0,8.871e-05,2]
[401296119,1768115874988,500.0,8.871e-05,2]
[401296120,1768115875056,156.57741604,8.871e-05,2]
[401296121,1768115875081,343.42258396,8.871e-05,2]
[401296122,1768115875118,500.0,8.871e-05,2]
[401296123,1768115875158,500.0,8.871e-05,2]
[401296124,1768115875198,500.0,8.871e-05,2]
[401296125,1768115875239,500.0,8.871e-05,2]
[401296126,1768115875301,500.0,8.871e-05,2]
[401296127,1768115875369,500.0,8.871e-05,2]
[401296128,1768115875429,500.0,8.871e-05,2]
[401296129,1768115875497,500.0,8.871e-05,2]
[401296132,1768115882353,300.0,8.871e-05,2]
[401296133,1768115902029,500.0,8.871e-05,2]
[401296134,1768115902119,500.0,8.871e-05,2]
[401296135,1768115902220,350.0,8.871e-05,2]
[401296136,1768115904038,313.89712674,8.871e-05,2]
[401296137,1768115968775,500.0,8.871e-05,2]
[401296138,1768115969315,500.0,8.871e-05,2]
[401296139,1768115969491,384.06262944,8.871e-05,2]
[401296140,1768115969582,912.7,6.845e-05,2]
[401296141,1768115969782,500.0,8.871e-05,2]
[401296142,1768115969999,895.92765986,7.467e-05,2]
[401296143,1768115970029,929.46234014,7.467e-05,2]
[401296144,1768115970426,2738.09,8.089e-05,2]
[401296145,1768115970837,3650.79,8.712e-05,2]
[401296146,1768115970880,500.0,8.871e-05,2]
[401296147,1768115972767,500.0,8.871e-05,2]
[401296148,1768115974352,500.0,8.871e-05,2]
[401296149,1768115974886,158.4744816,8.871e-05,2]
[401296150,1768115975399,500.0,8.871e-05,2]
[401296151,1768115975757,500.0,8.871e-05,2]
[401296152,1768115976009,23.19317826,8.871e-05,2]
[401296153,1768115976039,476.80682174,8.871e-05,2]
[401296154,1768115976092,500.0,8.871e-05,2]
[401296155,1768115976189,511.74160513,8.871e-05,2]
[401296156,1768115976236,500.0,8.871e-05,2]
[401296157,1768115976309,230.44359312,8.871e-05,2]
[401296158,1768115976419,421.35633191,8.871e-05,2]
[401296159,1768116001334,300.0,8.871e-05,2]
[401296160,1768116004602,976.92,5e-05,2]
[401296161,1768116005228,976.92,5.5e-05,2]
[401296162,1768116005914,976.92,6e-05,2]
[401296163,1768116006262,976.92,6.5e-05,2]
[401296164,1768116007013,976.92,7.1e-05,2]
[401296165,1768116007481,976.92,7.6e-05,2]
[401296166,1768116008062,976.92,8.1e-05,2]
[401296167,1768116008652,221.2216481,8.6e-05,2]
[401296168,1768116008677,755.6983519,8.6e-05,2]
[401296169,1768116035074,976.78,5e-05,2]
[401296170,1768116044838,796.76,7.513e-05,2]
[401296171,1768116045312,1593.53,8.197e-05,2]
[401296172,1768116082386,192.27151035,8.871e-05,2]
[401296173,1768116106033,218.358,8.694e-05,2]
[401296174,1768116106112,176.72110984,8.694e-05,2]
[401296175,1768116124479,766.34,6.875e-05,2]
[401296176,1768116124957,1532.68,7.5e-05,2]
[401296177,1768116125350,2299.02,8.125e-05,2]
[401296178,1768116125794,1447.54937981,8.75e-05,2]
[401296179,1768116125822,1617.81062019,8.75e-05,2]
[401296180,1768116150618,191479.7166967,0.00030137,120]
[401296181,1768116209035,668.81,6.396e-05,2]
[401296182,1768116209797,1337.61,6.978e-05,2]
[401296183,1768116210210,2006.42,7.559e-05,2]
[401296184,1768116210655,2675.23,8.141e-05,2]
[401296185,1768116211099,1694.12937981,8.722e-05,2]
[401296186,1768116211126,1649.90062019,8.722e-05,2]
[401296187,1768116226994,-222.17185254,8.872e-05,2]
[401296188,1768116288432,541.13,6.224e-05,2]
[401296189,1768116288895,1082.25,6.789e-05,2]
[401296190,1768116289368,1623.38,7.355e-05,2]
[401296191,1768116289776,2164.5,7.921e-05,2]
[401296192,1768116290187,2705.63,8.487e-05,2]
[401296193,1768116318487,-167.60787051,8.872e-05,2]
[401296196,1768116368523,437.82,6.294e-05,2]
[401296197,1768116368959,875.64,6.866e-05,2]
[401296198,1768116369407,569.66,7.438e-05,2]
[401296199,1768116369437,743.8,7.438e-05,2]
[401296200,1768116369802,1751.28,8.011e-05,2]
[401296201,1768116370226,2189.1,8.583e-05,2]
[401296202,1768116438864,219.72798871,8.871e-05,2]
[401296203,1768116450425,354.24,6.259e-05,2]
[401296204,1768116450856,708.47,6.828e-05,2]
[401296205,1768116451251,1062.71,7.398e-05,2]
[401296206,1768116451724,1416.94,7.967e-05,2]
[401296207,1768116452150,1553.74201129,8.536e-05,2]
[401296208,1768116452182,217.43798871,8.536e-05,2]
[401296211,1768116496494,9782.57201129,8.772e-05,2]
[401296212,1768116496527,10000.01,8.772e-05,2]
[401296213,1768116496560,10000.01,8.772e-05,2]
[401296214,1768116496593,10000.01,8.772e-05,2]
[401296215,1768116496625,10000.01,8.772e-05,2]
[401296216,1768116496656,10000.01,8.772e-05,2]
[401296217,1768116496688,10000.01,8.772e-05,2]
[401296218,1768116496717,10000.01,8.772e-05,2]
[401296219,1768116496749,10000.01,8.772e-05,2]
[401296220,1768116496779,10000.01,8.772e-05,2]
[401296223,1768116536605,-286.61,7.02e-05,2]
[401296224,1768116536647,-573.22,7.658e-05,2]
[401296225,1768116536686,-859.83,8.296e-05,2]
[401296226,1768116542211,-275.15430135,8.772e-05,2]
[401296227,1768116542421,300.0,8.771e-05,2]
[401296228,1768116601265,300.0,8.771e-05,2]
[401296229,1768116602233,300.0,8.771e-05,2]
[401296230,1768116603073,300.0,8.771e-05,2]
[401296231,1768116603389,1200.0,8.771e-05,2]
[401296232,1768116608566,264.72,7.013e-05,2]
[401296233,1768116609005,529.44,7.651e-05,2]
[401296234,1768116609445,794.17,8.289e-05,2]
[401296289,1768116637804,-668544.82270866,8.772e-05,2]
[401296290,1768116637816,-29397.11525735,8.772e-05,2]
[401296291,1768116637829,-202000.24572135,8.772e-05,2]
[401296292,1768116637838,-543.0,8.772e-05,2]
[401296293,1768116637849,-420.21073281,8.872e-05,2]
[401296294,1768116637859,-3588.20550989,8.872e-05,2]
[401296295,1768116637870,-1058.89,8.926e-05,2]
[401296296,1768116637881,-50000.0,9.048e-05,2]
[401296297,1768116637891,-300.0,9.048e-05,2]
[401296298,1768116637903,-300.0,9.048e-05,2]
[401296299,1768116637923,-300.0,9.048e-05,2]
[401296300,1768116637935,-300.0,9.048e-05,2]
[401296301,1768116637945,-300.0,9.048e-05,2]
[401296302,1768116637955,-300.0,9.048e-05,2]
[401296303,1768116637970,-300.0,9.048e-05,2]
[401296304,1768116637989,-300.0,9.048e-05,2]
[401296305,1768116637999,-300.0,9.048e-05,2]
[401296306,1768116638008,-300.0,9.048e-05,2]
[401296307,1768116638018,-300.0,9.048e-05,2]
[401296308,1768116638032,-300.0,9.048e-05,2]
[401296309,1768116638042,-300.0,9.048e-05,2]
[401296310,1768116638051,-300.0,9.048e-05,2]
[401296311,1768116638061,-300.0,9.048e-05,2]
[401296312,1768116638070,-600.0,9.048e-05,2]
[401296313,1768116638080,-976.92,9.1e-05,2]
[401296314,1768116638090,-1323.61,9.564e-05,2]
[401296315,1768116638225,-976.92,9.6e-05,2]
[401296316,1768116638235,-420.0,9.648e-05,2]
[401296317,1768116638245,-720.0,9.953e-05,2]
[401296318,1768116638255,-369.91,0.0001,2]
[401296319,1768116638265,-151.0,0.0001,2]
[401296320,1768116638275,-151.0,0.0001,2]
[401296321,1768116638285,-151.0,0.0001,2]
[401296322,1768116638295,-151.0,0.0001,2]
[401296323,1768116638305,-151.0,0.0001,2]
[401296324,1768116638314,-151.0,0.0001,2]
[401296325,1768116638324,-151.0,0.0001,2]
[401296326,1768116638334,-153.90472729,0.0001,2]
[401296327,1768116638344,-151.0,0.0001,2]
[401296328,1768116638353,-151.0,0.0001,2]
[401296329,1768116638364,-151.0,0.0001,2]
[401296330,1768116638373,-151.0,0.0001,2]
[401296331,1768116638383,-151.0,0.0001,2]
[401296332,1768116638393,-151.0,0.0001,2]
[401296333,1768116638403,-151.0,0.0001,2]
[401296334,1768116638412,-151.0,0.0001,2]
[401296335,1768116638422,-151.0,0.0001,2]
[401296336,1768116638431,-154.07167593,0.0001,2]
[401296337,1768116638441,-976.92,0.000101,2]
[401296338,1768116638450,-500.0,0.00010126,2]
[401296339,1768116638460,-752.0,0.00010126,2]
[401296340,1768116638470,-369.91,0.000102,2]
[401296341,1768116638479,-500.0,0.000102,2]
[401296342,1768116638489,-1588.33,0.00010201,2]
[401296343,1768116638499,-33338.82900008,0.00010229,2]
[401296344,1768116638508,-500.0,0.00010263,2]
[401296345,1768116638517,-752.0,0.00010263,2]
[401296346,1768116638527,-36778.8896462,0.00010391,2]
[401296347,1768116638537,-500.0,0.000104,2]
[401296348,1768116638547,-752.0,0.000104,2]
[401296349,1768116638557,-369.91,0.000104,2]
[401296350,1768116638566,-500.0,0.00010474,2]
[401296351,1768116638575,-500.0,0.00010517,2]
[401296352,1768116638584,-283.8218406,0.00010517,2]
[401296353,1768116638594,-190.86169873,0.00010517,2]
[401296354,1768116638604,-171.51692933,0.00010517,2]
[401296355,1768116638614,-500.0,0.00010537,2]
[401296356,1768116638623,-752.0,0.00010537,2]
[401296357,1768116638633,-369.91,0.000106,2]
[401296358,1768116638642,-976.92,0.000106,2]
[401296359,1768116638651,-587.0,0.00010613,2]
[401296360,1768116638661,-500.0,0.00010654,2]
[401296361,1768116638670,-500.0,0.00010674,2]
[401296362,1768116638680,-752.0,0.00010674,2]
[401296363,1768116638689,-500.0,0.00010748,2]
[401296364,1768116638699,-500.0,0.00010791,2]
[401296365,1768116638708,-369.91,0.000108,2]
[401296366,1768116638719,-500.0,0.00010811,2]
[401296367,1768116638729,-752.0,0.00010811,2]
[401296368,1768116638738,-1853.06,0.00010839,2]
[401296369,1768116638748,-495.84866472,0.00010872,2]
[401296370,1768116638757,-500.0,0.00010928,2]
[401296371,1768116638767,-500.0,0.00010948,2]
[401296372,1768116638776,-752.0,0.00010948,2]
[401296373,1768116638786,-864.0,0.00010948,2]
[401296374,1768116638796,-369.91,0.00011,2]
[401296375,1768116638806,-151.0,0.00011,2]
[401296376,1768116638816,-151.0,0.00011,2]
[401296377,1768116638826,-151.0,0.00011,2]
[401296378,1768116638835,-151.0,0.00011,2]
[401296379,1768116638845,-500.0,0.00011022,2]
[401296380,1768116638855,-243.28275221,0.00011065,2]
[401296381,1768116638865,-500.0,0.00011085,2]
[401296382,1768116638877,-752.0,0.00011085,2]
[401296383,1768116638888,-976.92,0.000112,2]
[401296384,1768116638899,-500.0,0.00011222,2]
[401296385,1768116638911,-752.0,0.00011222,2]
[401296386,1768116638922,-500.0,0.00011296,2]
[401296387,1768116638933,-500.0,0.00011359,2]
[401296388,1768116638944,-752.0,0.00011359,2]
[401296389,1768116638956,-761.14775359,0.0001142,2]
[401296390,1768116638968,-2117.78,0.00011476,2]
[401296391,1768116638978,-623.15407208,0.00011496,2]
[401296392,1768116638989,-752.0,0.00011496,2]
[401296393,1768116638999,-500.0,0.0001157,2]
[401296394,1768116639010,-752.0,0.00011633,2]
[401296395,1768116639020,-823.0,0.00011674,2]
[401296396,1768116639030,-976.92,0.000117,2]
[401296397,1768116639040,-30000.0,0.0001176,2]
[401296398,1768116639051,-223.13477496,0.0001176,2]
[401296399,1768116639063,-151.0,0.0001176,2]
[401296400,1768116639074,-151.0,0.0001176,2]
[401296401,1768116639085,-151.0,0.0001176,2]
[401296402,1768116639096,-151.0,0.0001176,2]
[401296403,1768116639107,-151.0,0.0001176,2]
[401296404,1768116639118,-151.0,0.0001176,2]
[401296405,1768116639129,-151.0,0.0001176,2]
[401296406,1768116639139,-151.0,0.0001176,2]
[401296407,1768116639149,-151.0,0.0001176,2]
[401296408,1768116639160,-151.0,0.0001176,2]
[401296409,1768116639170,-151.0,0.0001176,2]
[401296410,1768116639181,-151.0,0.0001176,2]
[401296411,1768116639191,-151.0,0.0001176,2]
[401296412,1768116639200,-151.0,0.0001176,2]
[401296413,1768116639210,-151.0,0.0001176,2]
[401296414,1768116639223,-151.0,0.0001176,2]
[401296415,1768116639233,-151.0,0.0001176,2]
[401296416,1768116639243,-151.0,0.0001176,2]
[401296417,1768116639252,-151.0,0.0001176,2]
[401296418,1768116639262,-151.0,0.0001176,2]
[401296419,1768116639272,-151.0,0.0001176,2]
[401296420,1768116639283,-151.0,0.0001176,2]
[401296421,1768116639296,-151.0,0.0001176,2]
[401296422,1768116639306,-151.0,0.0001176,2]
[401296423,1768116639315,-151.0,0.0001176,2]
[401296425,1768116639325,-151.0,0.0001176,2]
[401296426,1768116639334,-151.0,0.0001176,2]
[401296427,1768116639344,-151.0,0.0001176,2]
[401296428,1768116639353,-151.0,0.0001176,2]
[401296429,1768116639362,-151.0,0.0001176,2]
[401296430,1768116639372,-151.0,0.0001176,2]
[401296431,1768116639382,-151.0,0.0001176,2]
[401296432,1768116639391,-151.0,0.0001176,2]
[401296433,1768116639401,-151.0,0.0001176,2]
[401296434,1768116639410,-151.0,0.0001176,2]
[401296435,1768116639420,-151.0,0.0001176,2]
[401296436,1768116639430,-151.0,0.0001176,2]
[401296437,1768116639440,-151.0,0.0001176,2]
[401296438,1768116639450,-151.0,0.0001176,2]
[401296439,1768116639461,-151.0,0.0001176,2]
[401296440,1768116639470,-752.0,0.0001177,2]
[401296441,1768116639480,-500.0,0.00011844,2]
[401296442,1768116639490,-752.0,0.00011907,2]
[401296443,1768116639499,-1000.0,0.00012043,2]
[401296444,1768116639509,-752.0,0.00012044,2]
[401296447,1768116639519,-2382.5,0.00012114,2]
[401296448,1768116639529,-500.0,0.00012118,2]
[401296449,1768116639539,-752.0,0.00012181,2]
[401296450,1768116639548,-976.92,0.000122,2]
[401296451,1768116639557,-5055.88306003,0.00012308,2]
[401296452,1768116639568,-752.0,0.00012318,2]
[401296453,1768116639577,-1030.96021323,0.00012329,2]
[401296454,1768116639587,-1030.96021323,0.00012329,2]
[401296455,1768116639596,-1030.96021323,0.00012329,2]
[401296456,1768116639606,-1030.96021323,0.00012329,2]
[401296457,1768116639616,-1030.96021323,0.00012329,2]
[401296458,1768116639625,-1030.96021323,0.00012329,2]
[401296459,1768116639635,-1030.96021323,0.00012329,2]
[401296460,1768116639644,-1030.96021323,0.00012329,2]
[401296461,1768116639653,-1030.96021323,0.00012329,2]
[401296462,1768116639663,-1030.96021323,0.00012329,2]
[401296463,1768116639673,-1030.96021323,0.00012329,2]
[401296464,1768116639683,-1030.96021323,0.00012329,2]
[401296465,1768116639692,-1030.96021323,0.00012329,2]
[401296466,1768116639702,-1030.96021323,0.00012329,2]
[401296467,1768116639712,-1030.96021323,0.00012329,2]
[401296468,1768116639721,-1030.96021323,0.00012329,2]
[401296469,1768116639731,-1030.96021323,0.00012329,2]
[401296470,1768116639740,-1030.96021323,0.00012329,2]
[401296471,1768116639750,-1030.96021323,0.00012329,2]
[401296472,1768116639760,-1030.96021323,0.00012329,2]
[401296473,1768116639770,-1030.96021323,0.00012329,2]
[401296475,1768116639780,-1030.96021323,0.00012329,2]
[401296477,1768116639790,-1030.96021323,0.00012329,2]
[401296479,1768116639799,-1030.96021323,0.00012329,2]
[401296480,1768116639809,-1030.96021323,0.00012329,2]
[401296482,1768116639818,-1030.96021323,0.00012329,2]
[401296484,1768116639827,-1030.96021323,0.00012329,2]
[401296486,1768116639836,-1030.96021323,0.00012329,2]
[401296488,1768116639845,-1030.96021323,0.00012329,2]
[401296490,1768116639855,-1030.96021323,0.00012329,2]
[401296492,1768116639864,-1030.96021323,0.00012329,2]
[401296494,1768116639874,-1030.96021323,0.00012329,2]
[401296496,1768116639884,-1030.96021323,0.00012329,2]
[401296498,1768116639893,-1030.96021323,0.00012329,2]
[401296500,1768116639902,-1030.96021323,0.00012329,2]
[401296502,1768116639912,-1030.96021323,0.00012329,2]
[401296504,1768116639922,-1030.96021323,0.00012329,2]
[401296506,1768116639932,-1030.96021323,0.00012329,2]
[401296508,1768116639942,-1030.96021323,0.00012329,2]
[401296510,1768116639952,-1030.96021323,0.00012329,2]
[401296512,1768116639961,-1030.96021323,0.00012329,2]
[401296514,1768116639970,-1030.96021323,0.00012329,2]
[401296516,1768116639980,-1030.96021323,0.00012329,2]
[401296518,1768116639989,-1030.96021323,0.00012329,2]
[401296519,1768116639999,-1030.96021323,0.00012329,2]
[401296520,1768116640009,-1030.96021323,0.00012329,2]
[401296521,1768116640019,-1030.96021323,0.00012329,2]
[401296522,1768116640029,-1030.96021323,0.00012329,2]
[401296523,1768116640038,-1030.96021323,0.00012329,2]
[401296524,1768116640048,-1030.96021323,0.00012329,2]
[401296525,1768116640058,-1030.96021323,0.00012329,2]
[401296526,1768116640068,-1030.96021323,0.00012329,2]
[401296527,1768116640078,-1030.96021323,0.00012329,2]
[401296528,1768116640087,-1030.96021323,0.00012329,2]
[401296529,1768116640096,-1030.96021323,0.00012329,2]
[401296530,1768116640106,-1030.96021323,0.00012329,2]
[401296531,1768116640115,-1030.96021323,0.00012329,2]
[401296532,1768116640124,-1030.96021323,0.00012329,2]
[401296533,1768116640133,-1020.65061109,0.00012329,2]
[401296534,1768116640142,-1020.65061109,0.00012329,2]
[401296535,1768116640152,-1020.65061109,0.00012329,2]
[401296536,1768116640161,-1020.65061109,0.00012329,2]
[401296537,1768116640171,-1020.65061109,0.00012329,2]
[401296538,1768116640180,-1020.65061109,0.00012329,2]
[401296539,1768116640189,-1020.65061109,0.00012329,2]
[401296540,1768116640199,-1020.65061109,0.00012329,2]
[401296541,1768116640208,-1020.65061109,0.00012329,2]
[401296542,1768116640220,-1020.65061109,0.00012329,2]
[401296543,1768116640229,-1020.65061109,0.00012329,2]
[401296544,1768116640239,-1020.65061109,0.00012329,2]
[401296545,1768116640248,-1020.65061109,0.00012329,2]
[401296546,1768116640257,-1020.65061109,0.00012329,2]
[401296547,1768116640266,-1020.65061109,0.00012329,2]
[401296548,1768116640275,-1020.65061109,0.00012329,2]
[401296549,1768116640284,-1020.65061109,0.00012329,2]
[401296550,1768116640293,-1020.65061109,0.00012329,2]
[401296551,1768116640303,-1020.65061109,0.00012329,2]